[Event "Titled Tuesday Blitz November 07 Late 2023"]
[White "Fernandez Sanchez, Mario Andres"]
[Black "Yeritsyan, Hayk"]
[WhiteFideId "6501621"]
[BlackFideId "13307320"]
[WhiteElo "2114"]
[BlackElo "2424"]
[Result "1/2-1/2"]
[Round "2"]
[TimeControl "180+1"]
[Date "2023.11.07"]
[WhiteClock "0:00:09"]
[BlackClock "0:01:18"]
[Board "163"]

1. d4 {[%clk 0:02:04]}  d5 {[%clk 0:02:58]} 2. Bf4 {[%clk 0:02:04]}  c5 {[%clk 0:02:57]} 3. e3 {[%clk 0:01:59]}  Nc6 {[%clk 0:02:57]} 4. Nf3 {[%clk 0:01:59]}  cxd4 {[%clk 0:02:58]} 5. exd4 {[%clk 0:01:59]}  Bg4 {[%clk 0:02:58]} 6. c3 {[%clk 0:01:58]}  e6 {[%clk 0:02:58]} 7. Nbd2 {[%clk 0:01:58]}  Bd6 {[%clk 0:02:58]} 8. Bg3 {[%clk 0:01:58]}  Nf6 {[%clk 0:02:58]} 9. Bd3 {[%clk 0:01:56]}  O-O {[%clk 0:02:58]} 10. Rc1 {[%clk 0:01:54]}  Qc7 {[%clk 0:02:58]} 11. Qc2 {[%clk 0:01:54]}  Rfc8 {[%clk 0:02:54]} 12. Qb1 {[%clk 0:01:53]}  Rab8 {[%clk 0:02:53]} 13. a3 {[%clk 0:01:52]}  b5 {[%clk 0:02:53]} 14. O-O {[%clk 0:01:52]}  Bh5 {[%clk 0:02:50]} 15. Rfe1 {[%clk 0:01:48]}  Bxg3 {[%clk 0:02:50]} 16. hxg3 {[%clk 0:01:49]}  Bg6 {[%clk 0:02:49]} 17. Ne5 {[%clk 0:01:48]}  Bxd3 {[%clk 0:02:49]} 18. Nxd3 {[%clk 0:01:47]}  Nd7 {[%clk 0:02:47]} 19. Nb3 {[%clk 0:01:44]}  Na5 {[%clk 0:02:46]} 20. Nbc5 {[%clk 0:01:42]}  Nxc5 {[%clk 0:02:46]} 21. Nxc5 {[%clk 0:01:43]}  Qb6 {[%clk 0:02:45]} 22. Re3 {[%clk 0:01:39]}  Qc6 {[%clk 0:02:43]} 23. Qc2 {[%clk 0:01:34]}  Nb7 {[%clk 0:02:42]} 24. b4 {[%clk 0:01:32]}  Nxc5 {[%clk 0:02:43]} 25. bxc5 {[%clk 0:01:30]}  a5 {[%clk 0:02:43]} 26. Rb1 {[%clk 0:01:27]}  Rb7 {[%clk 0:02:40]} 27. Re2 {[%clk 0:01:23]}  Rcb8 {[%clk 0:02:40]} 28. f4 {[%clk 0:01:15]}  g6 {[%clk 0:02:39]} 29. Qd3 {[%clk 0:01:11]}  b4 {[%clk 0:02:39]} 30. axb4 {[%clk 0:01:06]}  axb4 {[%clk 0:02:38]} 31. c4 {[%clk 0:01:02]}  dxc4 {[%clk 0:02:35]} 32. Qxc4 {[%clk 0:01:03]}  b3 {[%clk 0:02:18]} 33. Reb2 {[%clk 0:01:03]}  Qe4 {[%clk 0:02:18]} 34. Qc3 {[%clk 0:00:56]}  Rb4 {[%clk 0:02:13]} 35. c6 {[%clk 0:00:48]}  Qxd4+ {[%clk 0:02:04]} 36. Qxd4 {[%clk 0:00:48]}  Rxd4 {[%clk 0:02:05]} 37. Rxb3 {[%clk 0:00:47]}  Rxb3 {[%clk 0:02:01]} 38. Rxb3 {[%clk 0:00:48]}  Rc4 {[%clk 0:02:02]} 39. Rb8+ {[%clk 0:00:41]}  Kg7 {[%clk 0:02:02]} 40. Rc8 {[%clk 0:00:42]}  Rc3 {[%clk 0:01:57]} 41. Kh2 {[%clk 0:00:39]}  Kf6 {[%clk 0:01:56]} 42. Rc7 {[%clk 0:00:39]}  h5 {[%clk 0:01:56]} 43. Kh3 {[%clk 0:00:36]}  Rc1 {[%clk 0:01:54]} 44. Kh2 {[%clk 0:00:35]}  Kg7 {[%clk 0:01:47]} 45. Rc8 {[%clk 0:00:34]}  Kf6 {[%clk 0:01:46]} 46. Rc7 {[%clk 0:00:34]}  Rc2 {[%clk 0:01:46]} 47. Kh3 {[%clk 0:00:32]}  Rc5 {[%clk 0:01:44]} 48. g4 {[%clk 0:00:29]}  hxg4+ {[%clk 0:01:37]} 49. Kxg4 {[%clk 0:00:29]}  Rc4 {[%clk 0:01:37]} 50. g3 {[%clk 0:00:29]}  g5 {[%clk 0:01:33]} 51. Kf3 {[%clk 0:00:29]}  gxf4 {[%clk 0:01:32]} 52. gxf4 {[%clk 0:00:30]}  Kg6 {[%clk 0:01:32]} 53. Ke3 {[%clk 0:00:27]}  f6 {[%clk 0:01:31]} 54. Rc8 {[%clk 0:00:24]}  Kf5 {[%clk 0:01:30]} 55. c7 {[%clk 0:00:21]}  Rc3+ {[%clk 0:01:29]} 56. Kd4 {[%clk 0:00:20]}  Rc1 {[%clk 0:01:29]} 57. Ke3 {[%clk 0:00:18]}  Rc6 {[%clk 0:01:28]} 58. Kf3 {[%clk 0:00:16]}  Rc3+ {[%clk 0:01:28]} 59. Ke2 {[%clk 0:00:16]}  Kxf4 {[%clk 0:01:29]} 60. Rf8 {[%clk 0:00:15]}  Rxc7 {[%clk 0:01:26]} 61. Rxf6+ {[%clk 0:00:15]}  Ke5 {[%clk 0:01:27]} 62. Rf8 {[%clk 0:00:15]}  Ke4 {[%clk 0:01:27]} 63. Ra8 {[%clk 0:00:15]}  Rc2+ {[%clk 0:01:27]} 64. Ke1 {[%clk 0:00:15]}  e5 {[%clk 0:01:27]} 65. Ra3 {[%clk 0:00:15]}  Kf4 {[%clk 0:01:27]} 66. Rb3 {[%clk 0:00:16]}  Rh2 {[%clk 0:01:26]} 67. Ra3 {[%clk 0:00:15]}  e4 {[%clk 0:01:27]} 68. Rb3 {[%clk 0:00:14]}  Ra2 {[%clk 0:01:26]} 69. Rc3 {[%clk 0:00:14]}  Ra8 {[%clk 0:01:25]} 70. Rb3 {[%clk 0:00:14]}  Rd8 {[%clk 0:01:25]} 71. Ra3 {[%clk 0:00:14]}  Rd4 {[%clk 0:01:22]} 72. Rb3 {[%clk 0:00:14]}  e3 {[%clk 0:01:22]} 73. Rb8 {[%clk 0:00:14]}  Ke4 {[%clk 0:01:22]} 74. Ke2 {[%clk 0:00:12]}  Rd2+ {[%clk 0:01:22]} 75. Ke1 {[%clk 0:00:12]}  Rd5 {[%clk 0:01:20]} 76. Ke2 {[%clk 0:00:11]}  Rh5 {[%clk 0:01:14]} 77. Re8+ {[%clk 0:00:11]}  Kd4 {[%clk 0:01:15]} 78. Rd8+ {[%clk 0:00:11]}  Ke4 {[%clk 0:01:15]} 79. Re8+ {[%clk 0:00:12]}  Kf4 {[%clk 0:01:15]} 80. Rf8+ {[%clk 0:00:12]}  Kg3 {[%clk 0:01:16]} 81. Kxe3 {[%clk 0:00:11]}  Re5+ {[%clk 0:01:16]} 82. Kd4 {[%clk 0:00:11]}  Re7 {[%clk 0:01:17]} 83. Rf6 {[%clk 0:00:10]}  Kg4 {[%clk 0:01:17]} 84. Rf8 {[%clk 0:00:11]}  Kg5 {[%clk 0:01:18]} 85. Rf1 {[%clk 0:00:11]}  Kg6 {[%clk 0:01:19]} 86. Rf2 {[%clk 0:00:11]}  Rf7 {[%clk 0:01:19]} 87. Rxf7 {[%clk 0:00:09]}  Kxf7 {[%clk 0:01:18]} 1/2-1/2


[Site "https://www.chess.com"]

[Event "Titled Tuesday Blitz November 07 Late 2023"]
[White "Marchesich, Giovanni"]
[Black "Elbebiber"]
[WhiteFideId "2824790"]
[WhiteElo "2423"]
[BlackElo "2102"]
[Result "1/2-1/2"]
[Round "2"]
[TimeControl "180+1"]
[Date "2023.11.07"]
[WhiteClock "0:00:30"]
[BlackClock "0:01:04"]
[Board "165"]

1. b3 {[%clk 0:03:00]}  e6 {[%clk 0:02:56]} 2. Bb2 {[%clk 0:03:00]}  Nf6 {[%clk 0:02:56]} 3. c4 {[%clk 0:02:58]}  d5 {[%clk 0:02:55]} 4. Nf3 {[%clk 0:02:58]}  Be7 {[%clk 0:02:53]} 5. g3 {[%clk 0:02:58]}  c6 {[%clk 0:02:52]} 6. Bg2 {[%clk 0:02:58]}  O-O {[%clk 0:02:52]} 7. O-O {[%clk 0:02:57]}  Re8 {[%clk 0:02:48]} 8. d3 {[%clk 0:02:53]}  b6 {[%clk 0:02:48]} 9. Nbd2 {[%clk 0:02:52]}  Bb7 {[%clk 0:02:48]} 10. e4 {[%clk 0:02:49]}  dxe4 {[%clk 0:02:45]} 11. dxe4 {[%clk 0:02:49]}  h6 {[%clk 0:02:31]} 12. e5 {[%clk 0:02:46]}  Nh7 {[%clk 0:02:29]} 13. Qc2 {[%clk 0:02:44]}  Qc7 {[%clk 0:02:21]} 14. Rad1 {[%clk 0:02:43]}  c5 {[%clk 0:02:21]} 15. Ne4 {[%clk 0:02:42]}  Nc6 {[%clk 0:02:18]} 16. a3 {[%clk 0:02:39]}  Rad8 {[%clk 0:02:17]} 17. h4 {[%clk 0:02:32]}  Rxd1 {[%clk 0:02:13]} 18. Rxd1 {[%clk 0:02:31]}  Rd8 {[%clk 0:02:14]} 19. Bc3 {[%clk 0:02:19]}  Rxd1+ {[%clk 0:02:13]} 20. Qxd1 {[%clk 0:02:20]}  Qd8 {[%clk 0:02:12]} 21. Qxd8+ {[%clk 0:02:19]}  Nxd8 {[%clk 0:02:12]} 22. Nfd2 {[%clk 0:02:18]}  Kf8 {[%clk 0:02:10]} 23. f4 {[%clk 0:02:17]}  Ke8 {[%clk 0:02:03]} 24. Kf2 {[%clk 0:02:17]}  Nf8 {[%clk 0:02:02]} 25. h5 {[%clk 0:02:15]}  Nd7 {[%clk 0:02:02]} 26. Ke3 {[%clk 0:02:13]}  Nc6 {[%clk 0:01:59]} 27. g4 {[%clk 0:02:10]}  Nd8 {[%clk 0:01:58]} 28. b4 {[%clk 0:02:10]}  cxb4 {[%clk 0:01:56]} 29. axb4 {[%clk 0:02:09]}  Nc6 {[%clk 0:01:53]} 30. b5 {[%clk 0:02:02]}  Nd8 {[%clk 0:01:53]} 31. Nb3 {[%clk 0:01:59]}  Nc5 {[%clk 0:01:49]} 32. Nbxc5 {[%clk 0:01:54]}  bxc5 {[%clk 0:01:47]} 33. Bf3 {[%clk 0:01:51]}  Kd7 {[%clk 0:01:45]} 34. Bb2 {[%clk 0:01:38]}  Kc7 {[%clk 0:01:43]} 35. Ba3 {[%clk 0:01:35]}  Kb6 {[%clk 0:01:40]} 36. f5 {[%clk 0:01:35]}  Bxe4 {[%clk 0:01:34]} 37. Bxe4 {[%clk 0:01:31]}  Bg5+ {[%clk 0:01:34]} 38. Kd3 {[%clk 0:01:18]}  f6 {[%clk 0:01:31]} 39. Bb2 {[%clk 0:01:15]}  fxe5 {[%clk 0:01:16]} 40. Bxe5 {[%clk 0:01:14]}  Bf6 {[%clk 0:01:17]} 41. Bd6 {[%clk 0:00:50]}  exf5 {[%clk 0:01:12]} 42. Bxf5 {[%clk 0:00:48]}  Nf7 {[%clk 0:01:12]} 43. Bf4 {[%clk 0:00:36]}  Ne5+ {[%clk 0:01:10]} 44. Bxe5 {[%clk 0:00:28]}  Bxe5 {[%clk 0:01:10]} 45. Ke4 {[%clk 0:00:28]}  Bf6 {[%clk 0:01:08]} 46. Bc8 {[%clk 0:00:28]}  Bd4 {[%clk 0:01:07]} 47. Kd5 {[%clk 0:00:28]}  Bf6 {[%clk 0:01:07]} 48. Ke6 {[%clk 0:00:28]}  Bd4 {[%clk 0:01:07]} 49. Kd7 {[%clk 0:00:28]}  Bf6 {[%clk 0:01:06]} 50. Kd6 {[%clk 0:00:29]}  Bd4 {[%clk 0:01:06]} 51. Bf5 {[%clk 0:00:29]}  Bf6 {[%clk 0:01:06]} 52. Bd3 {[%clk 0:00:29]}  Bd4 {[%clk 0:01:06]} 53. Ke6 {[%clk 0:00:30]}  Bf6 {[%clk 0:01:06]} 54. Kf7 {[%clk 0:00:29]}  Bd4 {[%clk 0:01:05]} 55. Kg6 {[%clk 0:00:30]}  Bf6 {[%clk 0:01:05]} 56. g5 {[%clk 0:00:30]}  Bxg5 {[%clk 0:01:03]} 57. Kxg7 {[%clk 0:00:31]}  Be3 {[%clk 0:01:03]} 58. Kf6 {[%clk 0:00:31]}  Bd2 {[%clk 0:01:04]} 59. Kg6 {[%clk 0:00:31]}  Bc1 {[%clk 0:01:04]} 60. Kf5 {[%clk 0:00:32]}  a5 {[%clk 0:01:03]} 61. bxa6 {[%clk 0:00:31]}  Kxa6 {[%clk 0:01:03]} 62. Be4 {[%clk 0:00:32]}  Ka5 {[%clk 0:01:03]} 63. Bd5 {[%clk 0:00:33]}  Kb4 {[%clk 0:01:04]} 64. Kg6 {[%clk 0:00:30]}  Bd2 {[%clk 0:01:04]} 1/2-1/2


[Site "https://www.chess.com"]

[Event "Titled Tuesday Blitz November 07 Late 2023"]
[White "Powell, Paul"]
[Black "Wanyama, Harold"]
[WhiteFideId "2005840"]
[BlackFideId "10000380"]
[WhiteElo "2074"]
[BlackElo "2423"]
[Result "0-1"]
[Round "2"]
[TimeControl "180+1"]
[Date "2023.11.07"]
[WhiteClock "0:00:00"]
[BlackClock "0:00:53"]
[Board "166"]

1. d4 {[%clk 0:02:57]}  d5 {[%clk 0:02:58]} 2. Nf3 {[%clk 0:02:56]}  e6 {[%clk 0:02:59]} 3. Bf4 {[%clk 0:02:56]}  Nf6 {[%clk 0:02:58]} 4. e3 {[%clk 0:02:56]}  c5 {[%clk 0:02:57]} 5. Nbd2 {[%clk 0:02:54]}  Bd6 {[%clk 0:02:56]} 6. Ne5 {[%clk 0:02:54]}  Nc6 {[%clk 0:02:55]} 7. c3 {[%clk 0:02:52]}  Qc7 {[%clk 0:02:48]} 8. Bb5 {[%clk 0:02:51]}  O-O {[%clk 0:02:47]} 9. Bxc6 {[%clk 0:02:50]}  bxc6 {[%clk 0:02:46]} 10. O-O {[%clk 0:02:50]}  Rb8 {[%clk 0:02:46]} 11. Rb1 {[%clk 0:02:48]}  cxd4 {[%clk 0:02:39]} 12. exd4 {[%clk 0:02:47]}  c5 {[%clk 0:02:39]} 13. Re1 {[%clk 0:02:44]}  Re8 {[%clk 0:02:36]} 14. h3 {[%clk 0:02:38]}  cxd4 {[%clk 0:02:34]} 15. cxd4 {[%clk 0:02:37]}  Bb7 {[%clk 0:02:33]} 16. Ndf3 {[%clk 0:02:33]}  Ne4 {[%clk 0:02:31]} 17. Bh2 {[%clk 0:01:56]}  Rbc8 {[%clk 0:02:27]} 18. Rc1 {[%clk 0:01:37]}  Qb6 {[%clk 0:02:18]} 19. Qb3 {[%clk 0:01:37]}  Qxb3 {[%clk 0:02:16]} 20. axb3 {[%clk 0:01:37]}  f6 {[%clk 0:02:01]} 21. Nd3 {[%clk 0:01:35]}  Bf8 {[%clk 0:02:00]} 22. b4 {[%clk 0:01:26]}  Rc4 {[%clk 0:01:51]} 23. Rxc4 {[%clk 0:01:16]}  dxc4 {[%clk 0:01:51]} 24. Nc5 {[%clk 0:01:17]}  Nxc5 {[%clk 0:01:50]} 25. dxc5 {[%clk 0:01:11]}  e5 {[%clk 0:01:49]} 26. Rc1 {[%clk 0:01:11]}  Bd5 {[%clk 0:01:47]} 27. Nd2 {[%clk 0:01:09]}  Rb8 {[%clk 0:01:44]} 28. Nxc4 {[%clk 0:01:07]}  Rxb4 {[%clk 0:01:43]} 29. Nd6 {[%clk 0:00:56]}  Rxb2 {[%clk 0:01:39]} 30. Nf5 {[%clk 0:00:51]}  Bxc5 {[%clk 0:01:20]} 31. Bg3 {[%clk 0:00:50]}  Bf8 {[%clk 0:01:12]} 32. Rc8 {[%clk 0:00:47]}  Be6 {[%clk 0:01:13]} 33. Ne7+ {[%clk 0:00:43]}  Kf7 {[%clk 0:01:12]} 34. Ra8 {[%clk 0:00:27]}  Bxe7 {[%clk 0:01:12]} 35. Rxa7 {[%clk 0:00:28]}  Rd2 {[%clk 0:01:11]} 36. Ra4 {[%clk 0:00:27]}  Rd7 {[%clk 0:01:04]} 37. Ra6 {[%clk 0:00:27]}  Bd6 {[%clk 0:01:00]} 38. Rb6 {[%clk 0:00:23]}  f5 {[%clk 0:00:58]} 39. Ra6 {[%clk 0:00:17]}  f4 {[%clk 0:00:58]} 40. Bh4 {[%clk 0:00:17]}  h6 {[%clk 0:00:57]} 41. f3 {[%clk 0:00:17]}  Bc5+ {[%clk 0:00:55]} 42. Kf1 {[%clk 0:00:00]}  Bc4+ {[%clk 0:00:53]} 0-1


[Site "https://www.chess.com"]

[Event "Titled Tuesday Blitz November 07 Late 2023"]
[White "Villarreal, Agustin"]
[Black "Bongo Akanga Ndjila, Barthelemy"]
[WhiteFideId "125687"]
[BlackFideId "10609431"]
[WhiteElo "2421"]
[BlackElo "2008"]
[Result "1-0"]
[Round "2"]
[TimeControl "180+1"]
[Date "2023.11.07"]
[WhiteClock "0:00:32"]
[BlackClock "0:00:00"]
[Board "167"]

1. Nf3 {[%clk 0:03:00]}  d5 {[%clk 0:02:59]} 2. d4 {[%clk 0:02:59]}  Nf6 {[%clk 0:02:59]} 3. c4 {[%clk 0:02:59]}  e6 {[%clk 0:02:59]} 4. Nc3 {[%clk 0:02:59]}  Bb4 {[%clk 0:02:59]} 5. e3 {[%clk 0:02:57]}  O-O {[%clk 0:02:57]} 6. Be2 {[%clk 0:02:58]}  c5 {[%clk 0:02:55]} 7. O-O {[%clk 0:02:55]}  cxd4 {[%clk 0:02:53]} 8. exd4 {[%clk 0:02:56]}  dxc4 {[%clk 0:02:52]} 9. Bxc4 {[%clk 0:02:57]}  Nc6 {[%clk 0:02:49]} 10. Bg5 {[%clk 0:02:57]}  Be7 {[%clk 0:02:48]} 11. Re1 {[%clk 0:02:55]}  Nd5 {[%clk 0:02:48]} 12. Bxd5 {[%clk 0:02:45]}  Bxg5 {[%clk 0:02:46]} 13. Bxc6 {[%clk 0:02:43]}  bxc6 {[%clk 0:02:45]} 14. Qa4 {[%clk 0:02:42]}  Bf6 {[%clk 0:02:35]} 15. Ne4 {[%clk 0:02:40]}  Rb8 {[%clk 0:02:33]} 16. b3 {[%clk 0:02:32]}  Be7 {[%clk 0:02:25]} 17. Nc5 {[%clk 0:02:20]}  Qd5 {[%clk 0:02:21]} 18. Re5 {[%clk 0:02:18]}  Qd6 {[%clk 0:02:17]} 19. Ne4 {[%clk 0:02:18]}  Qc7 {[%clk 0:02:15]} 20. Nc5 {[%clk 0:02:14]}  Bf6 {[%clk 0:02:12]} 21. Re3 {[%clk 0:02:07]}  Qd6 {[%clk 0:02:08]} 22. Qxa7 {[%clk 0:02:04]}  Bxd4 {[%clk 0:01:47]} 23. Nxd4 {[%clk 0:01:51]}  Qxd4 {[%clk 0:01:46]} 24. Rc1 {[%clk 0:01:52]}  Bb7 {[%clk 0:01:37]} 25. Qa4 {[%clk 0:00:54]}  Qb2 {[%clk 0:01:26]} 26. Ree1 {[%clk 0:00:48]}  Ra8 {[%clk 0:01:06]} 27. Qe4 {[%clk 0:00:45]}  Bc8 {[%clk 0:00:44]} 28. Rc2 {[%clk 0:00:44]}  Qf6 {[%clk 0:00:15]} 29. Qxc6 {[%clk 0:00:40]}  Ra5 {[%clk 0:00:14]} 30. Ne4 {[%clk 0:00:36]}  Qg6 {[%clk 0:00:12]} 31. Qxc8 {[%clk 0:00:35]}  Ra8 {[%clk 0:00:06]} 32. Qc3 {[%clk 0:00:35]}  h5 {[%clk 0:00:04]} 33. Qg3 {[%clk 0:00:33]}  Qf5 {[%clk 0:00:03]} 34. Qg5 {[%clk 0:00:33]}  Qh7 {[%clk 0:00:00]} 35. Nf6+ {[%clk 0:00:32]} 1-0


[Site "https://www.chess.com"]

[Event "Titled Tuesday Blitz November 07 Late 2023"]
[White "Olenik Campa, Rudi"]
[Black "Burke, Paul"]
[WhiteFideId "14633264"]
[BlackFideId "2605767"]
[WhiteElo "2408"]
[BlackElo "1880"]
[Result "1-0"]
[Round "2"]
[TimeControl "180+1"]
[Date "2023.11.07"]
[WhiteClock "0:00:10"]
[BlackClock "0:00:49"]
[Board "174"]

1. e4 {[%clk 0:03:00]}  e5 {[%clk 0:02:59]} 2. Nf3 {[%clk 0:02:59]}  Nc6 {[%clk 0:03:00]} 3. Bb5 {[%clk 0:02:58]}  f5 {[%clk 0:02:59]} 4. d3 {[%clk 0:02:56]}  Nf6 {[%clk 0:02:59]} 5. Nc3 {[%clk 0:02:54]}  Be7 {[%clk 0:02:59]} 6. O-O {[%clk 0:02:52]}  O-O {[%clk 0:02:58]} 7. Re1 {[%clk 0:02:34]}  d6 {[%clk 0:02:58]} 8. d4 {[%clk 0:02:29]}  fxe4 {[%clk 0:02:56]} 9. Nxe4 {[%clk 0:02:29]}  Bg4 {[%clk 0:02:55]} 10. Bxc6 {[%clk 0:02:23]}  bxc6 {[%clk 0:02:54]} 11. h3 {[%clk 0:02:23]}  Bh5 {[%clk 0:02:50]} 12. Ng3 {[%clk 0:02:22]}  Bxf3 {[%clk 0:02:44]} 13. Qxf3 {[%clk 0:02:23]}  exd4 {[%clk 0:02:36]} 14. Nf5 {[%clk 0:02:18]}  Nd5 {[%clk 0:02:22]} 15. Qg4 {[%clk 0:02:11]}  Bf6 {[%clk 0:02:09]} 16. Nxd4 {[%clk 0:01:58]}  Bxd4 {[%clk 0:02:06]} 17. Qxd4 {[%clk 0:01:59]}  Qf6 {[%clk 0:02:06]} 18. Qxf6 {[%clk 0:01:57]}  Nxf6 {[%clk 0:02:04]} 19. b3 {[%clk 0:01:52]}  Rfe8 {[%clk 0:02:03]} 20. Bb2 {[%clk 0:01:49]}  Rxe1+ {[%clk 0:02:03]} 21. Rxe1 {[%clk 0:01:49]}  Re8 {[%clk 0:02:03]} 22. Rxe8+ {[%clk 0:01:48]}  Nxe8 {[%clk 0:02:02]} 23. Kf1 {[%clk 0:01:48]}  Kf7 {[%clk 0:02:02]} 24. Ke2 {[%clk 0:01:48]}  Ke6 {[%clk 0:02:02]} 25. Ke3 {[%clk 0:01:47]}  Kd5 {[%clk 0:02:02]} 26. a3 {[%clk 0:01:41]}  a6 {[%clk 0:01:45]} 27. c4+ {[%clk 0:01:40]}  Ke6 {[%clk 0:01:44]} 28. f4 {[%clk 0:01:40]}  Nf6 {[%clk 0:01:42]} 29. g4 {[%clk 0:01:16]}  g6 {[%clk 0:01:41]} 30. Bxf6 {[%clk 0:00:53]}  Kxf6 {[%clk 0:01:40]} 31. b4 {[%clk 0:00:39]}  h6 {[%clk 0:01:37]} 32. Kd4 {[%clk 0:00:36]}  Ke6 {[%clk 0:01:36]} 33. a4 {[%clk 0:00:32]}  Kf6 {[%clk 0:01:35]} 34. b5 {[%clk 0:00:20]}  cxb5 {[%clk 0:01:32]} 35. cxb5 {[%clk 0:00:20]}  a5 {[%clk 0:01:07]} 36. Kd5 {[%clk 0:00:19]}  Ke7 {[%clk 0:01:00]} 37. h4 {[%clk 0:00:15]}  Kf6 {[%clk 0:00:54]} 38. Kc6 {[%clk 0:00:13]}  g5 {[%clk 0:00:52]} 39. fxg5+ {[%clk 0:00:07]}  hxg5 {[%clk 0:00:51]} 40. hxg5+ {[%clk 0:00:06]}  Kxg5 {[%clk 0:00:50]} 41. Kxc7 {[%clk 0:00:07]}  d5 {[%clk 0:00:51]} 42. b6 {[%clk 0:00:08]}  d4 {[%clk 0:00:51]} 43. b7 {[%clk 0:00:09]}  d3 {[%clk 0:00:52]} 44. b8=Q {[%clk 0:00:09]}  d2 {[%clk 0:00:49]} 45. Qd8+ {[%clk 0:00:10]} 1-0


[Site "https://www.chess.com"]

[Event "Titled Tuesday Blitz November 07 Late 2023"]
[White "Lutz, Igor Oscar"]
[Black "FuenfgegenWilly"]
[WhiteFideId "2110806"]
[WhiteElo "1856"]
[BlackElo "2406"]
[Result "0-1"]
[Round "2"]
[TimeControl "180+1"]
[Date "2023.11.07"]
[WhiteClock "0:01:39"]
[BlackClock "0:02:28"]
[Board "175"]

1. d4 {[%clk 0:03:00]}  Na6 {[%clk 0:03:00]} 2. c4 {[%clk 0:03:01]}  c6 {[%clk 0:03:01]} 3. Nc3 {[%clk 0:03:01]}  Nc7 {[%clk 0:03:02]} 4. e4 {[%clk 0:03:01]}  d5 {[%clk 0:03:03]} 5. Nf3 {[%clk 0:03:02]}  dxe4 {[%clk 0:03:03]} 6. Nxe4 {[%clk 0:03:03]}  Nf6 {[%clk 0:03:03]} 7. Ng3 {[%clk 0:03:02]}  Bg4 {[%clk 0:03:02]} 8. Be2 {[%clk 0:03:02]}  e6 {[%clk 0:03:02]} 9. Bg5 {[%clk 0:03:00]}  Be7 {[%clk 0:03:01]} 10. Ne5 {[%clk 0:02:55]}  Bxe2 {[%clk 0:03:01]} 11. Nxe2 {[%clk 0:02:56]}  Ne4 {[%clk 0:02:57]} 12. Bxe7 {[%clk 0:02:56]}  Qxe7 {[%clk 0:02:58]} 13. O-O {[%clk 0:02:47]}  f6 {[%clk 0:02:56]} 14. Nf3 {[%clk 0:02:39]}  O-O {[%clk 0:02:50]} 15. Qc2 {[%clk 0:02:39]}  Nd6 {[%clk 0:02:47]} 16. Nf4 {[%clk 0:02:33]}  e5 {[%clk 0:02:46]} 17. dxe5 {[%clk 0:02:33]}  fxe5 {[%clk 0:02:47]} 18. Rfe1 {[%clk 0:02:25]}  Rxf4 {[%clk 0:02:46]} 19. Rxe5 {[%clk 0:02:16]}  Qf8 {[%clk 0:02:45]} 20. Rae1 {[%clk 0:02:13]}  Re8 {[%clk 0:02:44]} 21. c5 {[%clk 0:02:07]}  Rxe5 {[%clk 0:02:42]} 22. Nxe5 {[%clk 0:02:08]}  Nf7 {[%clk 0:02:36]} 23. g3 {[%clk 0:01:57]}  Nxe5 {[%clk 0:02:32]} 24. gxf4 {[%clk 0:01:49]}  Nf3+ {[%clk 0:02:32]} 25. Kf1 {[%clk 0:01:47]}  Nxe1 {[%clk 0:02:30]} 26. Kxe1 {[%clk 0:01:48]}  Nd5 {[%clk 0:02:30]} 27. Qc4 {[%clk 0:01:46]}  Qe7+ {[%clk 0:02:29]} 28. Kd2 {[%clk 0:01:39]}  Qf6 {[%clk 0:02:28]} 0-1


[Site "https://www.chess.com"]

[Event "Titled Tuesday Blitz November 07 Late 2023"]
[White "Nihal Sarin"]
[Black "Mekhitarian, Krikor Sevag"]
[WhiteFideId "25092340"]
[BlackFideId "2107660"]
[WhiteElo "3102"]
[BlackElo "2773"]
[Result "1-0"]
[Round "3"]
[TimeControl "180+1"]
[Date "2023.11.07"]
[WhiteClock "0:00:43"]
[BlackClock "0:00:00"]
[Board "3"]

1. c4 {[%clk 0:03:00]}  c5 {[%clk 0:02:56]} 2. Nf3 {[%clk 0:02:57]}  Nc6 {[%clk 0:02:57]} 3. d4 {[%clk 0:02:54]}  cxd4 {[%clk 0:02:57]} 4. Nxd4 {[%clk 0:02:55]}  Nf6 {[%clk 0:02:49]} 5. g3 {[%clk 0:02:53]}  e5 {[%clk 0:02:48]} 6. Nb5 {[%clk 0:02:51]}  Bb4+ {[%clk 0:02:48]} 7. Bd2 {[%clk 0:02:51]}  a6 {[%clk 0:02:47]} 8. Bxb4 {[%clk 0:02:41]}  axb5 {[%clk 0:02:47]} 9. Bd6 {[%clk 0:02:41]}  bxc4 {[%clk 0:02:27]} 10. Bg2 {[%clk 0:02:38]}  Qa5+ {[%clk 0:02:16]} 11. Nc3 {[%clk 0:02:37]}  Ra6 {[%clk 0:01:42]} 12. O-O {[%clk 0:02:20]}  Nd4 {[%clk 0:01:32]} 13. Ba3 {[%clk 0:02:20]}  d6 {[%clk 0:01:11]} 14. e3 {[%clk 0:02:17]}  Nf5 {[%clk 0:01:11]} 15. g4 {[%clk 0:01:52]}  Nh4 {[%clk 0:01:06]} 16. g5 {[%clk 0:01:51]}  Nxg2 {[%clk 0:00:49]} 17. gxf6 {[%clk 0:01:32]}  Nh4 {[%clk 0:00:49]} 18. Ne4 {[%clk 0:01:32]}  gxf6 {[%clk 0:00:23]} 19. Nxd6+ {[%clk 0:01:24]}  Rxd6 {[%clk 0:00:19]} 20. Qxd6 {[%clk 0:01:25]}  Rg8+ {[%clk 0:00:18]} 21. Kh1 {[%clk 0:01:25]}  Nf5 {[%clk 0:00:17]} 22. Qxf6 {[%clk 0:01:04]}  Bd7 {[%clk 0:00:07]} 23. Rad1 {[%clk 0:00:57]}  Bc6+ {[%clk 0:00:06]} 24. f3 {[%clk 0:00:57]}  e4 {[%clk 0:00:07]} 25. Rg1 {[%clk 0:00:42]}  Rxg1+ {[%clk 0:00:00]} 26. Kxg1 {[%clk 0:00:43]} 1-0


[Site "https://www.chess.com"]